bitfinex/quotes_SOLUSD_20240705
["timestamp","ask_amount","ask_price","bid_price","bid_amount"]
[1720201877164,7.5791,134.97,134.89,15.8606]
[1720201877469,7.4096,134.96,134.87,6.4596]
[1720201877656,0.17,134.95,134.87,6.4596]
[1720201878650,7.4074,135.0,134.88,20.0]
[1720201879250,7.4079,134.99,134.88,20.0]
[1720201879450,7.4088,134.98,134.88,20.0]
[1720201880357,7.4098,134.96,134.87,6.4596]
[1720201880553,0.17,134.95,134.87,6.4596]
[1720201880753,0.17,134.97,134.87,6.4596]
[1720201881870,7.74076061,135.02,134.88,0.17]
[1720201882077,7.74076061,135.02,134.89,16.2135]
[1720201882256,7.74076061,135.02,134.9,20.0]
[1720201882653,15.14716061,135.02,134.9,20.0]
[1720201883251,0.17,135.01,134.9,20.0]
[1720201883566,7.74076061,135.02,134.9,20.0]
[1720201883774,0.876435,135.03,134.91,6.4803]
[1720201883958,20.876435,135.03,134.91,6.4803]
[1720201884673,0.876435,135.03,134.91,6.4803]
[1720201884844,0.876435,135.03,134.92,20.17]
[1720201885052,0.876435,135.03,134.92,20.0]
[1720201885389,7.4063,135.02,134.92,20.0]
[1720201885683,7.4063,135.02,134.91,6.4803]
[1720201886270,8.282335,135.03,134.91,6.4803]
[1720201886480,20.17,135.02,134.91,6.4803]
[1720201888467,0.17,135.02,134.91,6.4803]
[1720201889758,0.17,135.02,134.92,20.0]
[1720201889966,0.17,135.02,134.92,20.17]
[1720201891053,0.17,135.02,134.92,20.0]
[1720201892747,7.5763,135.02,134.92,20.0]
[1720201892953,7.4069,135.01,134.91,6.4803]
[1720201893154,0.17,135.0,134.91,6.4803]
[1720201893858,7.4065,135.02,134.91,6.4803]
[1720201893859,0.17,135.01,134.91,6.4803]
[1720201897575,0.17,135.01,134.92,20.0]
[1720201900180,0.17,135.02,134.93,33.24]
[1720201900357,0.876435,135.03,134.94,20.0]
[1720201900560,0.876435,135.03,134.95,15.5345]
[1720201902090,0.876435,135.03,134.97,6.2678]
[1720201902385,0.876435,135.03,134.99,15.0501]
[1720201903588,0.876435,135.03,135.0,20.0]
[1720201903975,0.1,135.09,135.01,6.2568]
[1720201904181,0.1,135.09,135.02,20.0]
[1720201904788,0.1,135.09,135.03,0.17]
[1720201905097,0.1,135.09,135.04,16.4127]
[1720201905289,0.1,135.09,135.05,20.17]
[1720201905793,0.1,135.09,135.06,6.1181]
[1720201905995,0.876435,135.16,135.08,15.59]
[1720201906209,0.876435,135.16,135.1,6.1181]
[1720201906510,0.876435,135.16,135.11,20.0]
[1720201907167,0.876435,135.16,135.12,0.17]
[1720201907997,0.1,135.19,135.13,21.3465]
[1720201908213,0.1,135.19,135.14,20.0]
[1720201909278,7.3921,135.28,135.14,20.0]
[1720201909279,6.696,135.29,135.14,120.0]
[1720201909472,6.696,135.29,135.14,20.0]
[1720201909680,6.696,135.29,135.15,0.17]
[1720201910171,0.1,135.29,135.15,100.17]
[1720201910373,0.1,135.29,135.16,20.0]
[1720201910569,0.1,135.29,135.13,21.3465]
[1720201910908,26.92723887,135.29,135.13,21.3465]
[1720201911196,7.3943,135.24,135.13,21.3465]
[1720201911379,2.74031666,135.28,135.13,21.3465]
[1720201911594,0.17,135.27,135.13,21.3465]
[1720201911807,7.3947,135.24,135.13,21.3465]
[1720201912003,7.5648,135.23,135.13,21.3465]
[1720201912170,7.3948,135.23,135.13,21.3465]
[1720201912371,0.17,135.22,135.13,21.3465]
[1720201912665,20.0,135.26,135.13,21.3465]
[1720201913298,20.0,135.27,135.13,21.3465]
[1720201913679,20.0,135.27,135.14,20.0]
[1720201913995,20.0,135.27,135.15,0.17]
[1720201914176,0.1,135.29,135.15,0.17]
[1720201914376,20.1,135.29,135.15,0.17]
[1720201915175,7.3926,135.27,135.15,0.17]
[1720201915508,7.3926,135.27,135.14,20.0]
[1720201915676,7.5633,135.26,135.14,20.0]
[1720201916000,0.17,135.26,135.14,20.0]
[1720201916412,7.5626,135.27,135.14,20.0]
[1720201917103,7.3933,135.26,135.14,20.0]
[1720201917280,0.17,135.25,135.14,20.0]
[1720201917487,20.0,135.27,135.15,0.17]
[1720201918002,0.1,135.29,135.16,6.6583]
[1720201918180,0.1,135.29,135.17,20.17]
[1720201918797,0.1,135.29,135.17,20.0]
[1720201919112,0.1,135.29,135.18,16.4629]
[1720201919477,0.1,135.29,135.16,6.6583]
[1720201919478,7.3956,135.22,135.16,6.6583]
[1720201919701,18.4838,135.26,135.16,6.6583]
[1720201919902,7.3948,135.24,135.16,6.6583]
[1720201920082,0.17,135.23,135.16,6.6583]
[1720201920496,7.5648,135.23,135.16,6.6583]
[1720201920905,7.73584879,135.22,135.16,6.6583]
[1720201921109,0.17,135.21,135.13,22.7763]
[1720201921331,7.73710412,135.22,135.13,22.7763]
[1720201921641,27.566,135.21,135.13,22.7763]
[1720201921927,0.17,135.21,135.13,22.7763]
[1720201922116,0.17,135.22,135.13,22.7763]
[1720201922289,27.3933,135.26,135.13,22.7763]
[1720201922290,7.73506359,135.25,135.13,22.7763]
[1720201922491,20.17,135.24,135.14,20.0]
[1720201922692,7.3948,135.23,135.14,20.0]
[1720201922923,7.5654,135.22,135.14,20.0]
[1720201923217,7.3963,135.21,135.13,22.7763]
[1720201923399,7.5665,135.2,135.13,22.7763]
[1720201923601,0.17,135.22,135.13,22.7763]
[1720201924126,20.17,135.22,135.13,22.7763]
[1720201924428,20.17,135.22,135.13,14.19810841]
[1720201924603,7.3963,135.21,135.13,14.19810841]
[1720201924922,7.3974,135.19,135.03,671.8893]
[1720201925101,0.17,135.18,135.04,100.0]
[1720201925302,0.17,135.2,135.05,6.3046]
[1720201925503,7.5664,135.2,135.06,20.0]
[1720201925818,0.17,135.2,135.05,6.3046]
[1720201926021,7.3986,135.16,135.05,6.3046]
[1720201926205,7.5692,135.15,135.05,6.3046]
[1720201926407,0.17,135.14,135.05,6.3046]
[1720201926994,20.0,135.17,135.05,6.3046]
[1720201927199,20.0,135.18,135.06,16.599]
[1720201927393,0.17,135.17,135.06,16.599]
[1720201927621,0.17,135.17,135.07,20.0]
[1720201927622,7.5684,135.17,135.07,20.0]
[1720201927802,0.17,135.17,135.07,20.0]
[1720201928311,6.3497,135.21,135.07,20.0]
[1720201928511,7.3966,135.2,135.09,6.082]
[1720201928714,15.0935,135.23,135.1,20.0]
[1720201928913,7.3954,135.22,135.1,20.0]
[1720201929346,7.3954,135.22,135.11,15.619]
[1720201929510,7.3954,135.22,135.12,20.0]
[1720201929926,7.3959,135.21,135.12,20.0]
[1720201930145,7.3962,135.21,135.12,20.0]
[1720201930725,15.0935,135.23,135.12,20.0]
[1720201931053,22.4886,135.23,135.12,20.0]
[1720201931246,20.17,135.22,135.12,20.0]
[1720201931739,27.5654,135.22,135.12,20.0]
[1720201932112,0.17,135.22,135.12,20.0]
[1720201932527,7.5654,135.22,135.12,20.0]
[1720201932722,15.30219041,135.22,135.12,20.0]
[1720201933639,7.90679041,135.22,135.11,15.619]
[1720201933841,20.0,135.21,135.11,15.619]
[1720201934053,7.3971,135.19,135.11,15.619]
[1720201934230,0.17,135.18,135.11,15.619]
[1720201935338,0.17,135.18,135.12,20.0]
[1720201935527,7.396,135.21,135.12,20.0]
[1720201935721,0.17,135.2,135.12,20.0]
[1720201935934,15.13219041,135.22,135.12,20.0]
[1720201936826,7.73679041,135.22,135.12,20.0]
[1720201937029,0.17,135.21,135.11,15.619]
[1720201937230,7.3971,135.19,135.11,15.619]
[1720201937435,0.17,135.18,135.11,15.619]
[1720201937625,27.5662,135.21,135.11,15.619]
[1720201937823,7.3964,135.2,135.11,15.619]
[1720201938038,0.17,135.19,135.11,15.619]
[1720201938930,0.17,135.2,135.11,15.619]
[1720201939114,7.5665,135.2,135.11,15.619]
[1720201939318,7.397,135.19,135.11,15.619]
[1720201939520,0.17,135.18,135.11,15.619]
[1720201939743,0.17,135.2,135.11,15.619]
[1720201940047,7.3973,135.19,135.11,15.619]
[1720201940250,0.17,135.18,135.11,15.619]
[1720201940933,7.5679,135.18,135.11,15.619]
[1720201941722,0.17,135.18,135.11,15.619]
[1720201942332,0.17,135.19,135.11,15.619]
[1720201944530,7.73836033,135.2,135.11,15.619]
[1720201944847,27.3962,135.21,135.11,15.619]
[1720201945636,7.73719818,135.22,135.12,6.5368]
[1720201945843,7.3959,135.21,135.12,26.5368]
[1720201946537,15.13259818,135.22,135.12,26.5368]
[1720201946729,7.73719818,135.22,135.12,26.5368]
[1720201946933,0.17,135.21,135.12,26.5368]
[1720201949028,0.17,135.22,135.12,26.5368]
[1720201949229,7.5654,135.22,135.12,26.5368]
[1720201949924,0.17,135.22,135.12,26.5368]
[1720201950943,7.5654,135.22,135.12,26.5368]
[1720201951443,0.17,135.22,135.12,6.5368]
[1720201951652,20.17,135.22,135.12,6.5368]
[1720201951838,7.3972,135.19,135.12,6.5368]
[1720201952156,7.3983,135.17,135.12,6.5368]
[1720201952463,0.17,135.16,135.12,6.5368]
[1720201953051,0.17,135.17,135.12,6.5368]
[1720201953746,7.5681,135.17,135.12,6.5368]
[1720201954050,0.17,135.17,135.12,6.5368]
[1720201954250,0.17,135.18,135.12,6.5368]
[1720201955330,7.7364431,135.23,135.12,6.5368]
[1720201955558,8.35163471,135.25,135.15,6.1759]
[1720201955852,7.3937,135.25,135.16,20.0]
[1720201956053,7.3986,135.16,135.15,6.1759]
[1720201956353,7.3966,135.2,135.15,6.1759]
[1720201956960,0.17,135.19,135.07,22.2308]
[1720201957258,27.5665,135.2,135.09,22.2308]
[1720201957642,20.17,135.2,135.1,6.3703]
[1720201957841,0.17,135.2,135.1,26.3703]
[1720201958036,0.17,135.21,135.1,26.3703]
[1720201958233,0.17,135.21,135.11,15.8605]
[1720201958427,0.17,135.21,135.12,20.0]
[1720201959457,7.3973,135.19,135.12,20.0]
[1720201959959,0.17,135.18,135.11,15.8605]
[1720201960453,0.17,135.19,135.11,15.8605]
[1720201962458,7.5671,135.19,135.11,15.8605]
[1720201963241,0.17,135.19,135.11,15.8605]
[1720201963862,27.5664,135.2,135.11,15.8605]
[1720201964171,7.397,135.19,135.11,15.8605]
[1720201964358,0.17,135.18,135.11,15.8605]
[1720201964944,0.17,135.19,135.11,15.8605]
[1720201965456,20.17,135.2,135.11,15.8605]
[1720201965663,7.5664,135.2,135.11,15.8605]
[1720201966970,0.17,135.2,135.11,15.8605]
[1720201967540,7.397,135.19,135.11,15.8605]
[1720201967772,0.17,135.18,135.11,15.8605]
[1720201968767,0.17,135.18,135.1,6.3703]
[1720201969066,7.3982,135.17,135.1,6.3703]
[1720201969274,0.17,135.16,135.1,6.3703]
[1720201969468,7.5687,135.16,135.1,6.3703]
[1720201972074,0.17,135.16,135.1,6.3703]
[1720201972251,0.17,135.16,135.07,15.1531]
[1720201972439,7.4,135.14,135.07,15.1531]
[1720201972645,0.17,135.13,135.07,15.1531]
[1720201974059,33.16,135.08,134.99,21.5883]
[1720201974254,7.4042,135.06,134.99,21.5883]
[1720201974449,7.4047,135.05,134.99,21.5883]
[1720201974672,0.17,135.04,134.99,21.5883]
[1720201975374,7.5752,135.04,134.99,6.4624]
[1720201976180,0.17,135.04,134.99,6.4624]
[1720201976877,0.17,135.04,134.96,15.1259]
[1720201976878,7.4058,135.03,134.96,15.1259]
[1720201977174,0.17,135.02,134.96,15.1259]
[1720201977375,40.7352,135.04,134.96,15.1259]
[1720201977786,7.5752,135.04,134.96,15.1259]
[1720201978191,7.4058,135.03,134.96,15.1259]
[1720201978364,0.17,135.02,134.96,15.1259]
[1720201978677,7.407,135.01,134.91,380.9]
[1720201978980,7.5775,135.0,134.91,380.9]
[1720201979163,20.17,135.02,134.91,380.9]
[1720201979164,7.407,135.01,134.91,380.9]
[1720201979481,0.17,135.0,134.91,380.9]
[1720201979898,7.74433682,135.05,134.92,35.8073]
[1720201980191,20.0,135.04,134.92,35.8073]
[1720201980677,38.514,135.04,134.91,0.1]
[1720201980881,7.4083,134.99,134.91,0.1]
[1720201981182,7.4086,134.98,134.91,0.1]
[1720201981358,0.17,134.97,134.91,0.1]
[1720201982385,0.17,134.98,134.91,0.1]
[1720201982690,37.26415628,135.03,134.91,0.1]
[1720201982856,7.74433682,135.05,134.93,15.8129]
[1720201983055,7.4028,135.09,134.95,21.9251]
[1720201983281,14.17460764,135.11,134.96,20.17]
[1720201983485,7.4026,135.09,134.96,20.17]
[1720201983791,14.17460764,135.11,134.96,20.17]
[1720201983792,7.4031,135.08,134.96,20.0]
[1720201984207,14.17460764,135.11,134.96,20.0]
[1720201984471,7.4026,135.09,134.96,20.0]
[1720201985364,7.4032,135.08,134.96,20.0]
[1720201985687,21.57610764,135.11,134.96,20.0]
[1720201985871,21.57610764,135.11,134.97,0.17]
[1720201986066,7.402,135.1,134.97,0.17]
[1720201986267,7.4025,135.09,134.96,20.0]
[1720201986880,0.17,135.08,134.96,400.8]
[1720201987762,0.17,135.09,134.96,400.8]
[1720201988286,7.74430764,135.11,134.99,6.483]
[1720201988483,6.5267,135.15,135.0,20.17]
[1720201988682,15.5004,135.17,135.01,22.1631]
[1720201988990,22.8989,135.17,135.02,20.17]
[1720201989305,15.5004,135.17,135.03,6.1063]
[1720201989471,15.5004,135.17,135.04,20.0]
[1720201989789,22.8985,135.17,135.04,20.0]
[1720201990089,7.3987,135.16,135.04,20.0]
[1720201990286,7.3982,135.17,135.05,15.8013]
[1720201990482,13.49670652,135.18,135.06,20.0]
[1720201990669,7.3986,135.16,135.06,20.0]
[1720201990863,7.3992,135.15,135.06,20.0]
[1720201991567,18.4942,135.18,135.06,20.0]
[1720201991767,20.17,135.17,135.05,15.8013]
[1720201992062,7.3992,135.15,135.05,15.8013]
[1720201992262,7.5698,135.14,135.05,15.8013]
[1720201992679,0.17,135.14,135.05,15.8013]
[1720201993081,7.4015,135.11,135.05,15.8013]
[1720201993393,0.17,135.1,135.03,6.1063]
[1720201994270,27.3992,135.15,135.03,6.1063]
[1720201994588,15.13955908,135.16,135.04,20.0]
[1720201994795,7.74085908,135.16,135.04,20.0]
[1720201995988,7.4003,135.13,135.04,20.0]
[1720201996760,0.17,135.12,135.04,20.0]
[1720201997162,7.402,135.1,135.03,6.1063]
[1720201997386,0.17,135.09,135.03,6.1063]
[1720201997784,0.17,135.1,135.03,6.1063]
[1720201997986,0.17,135.11,135.03,6.1063]
[1720201998165,7.4027,135.09,135.03,6.1063]
[1720201998375,0.17,135.08,135.03,6.1063]
[1720201998978,0.17,135.09,135.03,6.1063]
[1720201999384,7.5725,135.09,135.03,6.1063]
[1720201999587,7.5725,135.09,135.02,15.9947]
[1720201999787,7.403,135.08,135.0,6.1034]
[1720202000096,0.17,135.07,135.01,20.0]
[1720202000980,0.17,135.08,135.01,20.0]
[1720202001603,0.17,135.09,135.01,20.0]
[1720202001774,0.17,135.1,135.01,20.0]
[1720202001969,7.5714,135.11,135.01,20.0]
[1720202002199,7.402,135.1,135.01,20.0]
[1720202002400,0.17,135.09,135.01,20.0]
[1720202002789,7.5725,135.09,135.01,20.0]
[1720202003578,7.4032,135.08,135.01,20.0]
[1720202003778,0.17,135.07,135.01,20.0]
[1720202005004,7.4045,135.06,134.96,6.0065]
[1720202005190,0.17,135.05,134.96,6.0065]
[1720202005387,7.4041,135.06,134.96,6.0065]
[1720202005589,0.17,135.05,134.96,6.0065]
[1720202006102,7.5746,135.05,134.96,6.0065]
[1720202006308,0.17,135.05,134.94,395.8921]
[1720202006812,7.5748,135.05,134.94,395.8921]
[1720202007896,7.4052,135.04,134.94,395.8921]
[1720202008210,0.17,135.03,134.94,395.8921]
[1720202008403,0.17,135.03,134.94,15.0921]
[1720202008404,7.5758,135.03,134.94,15.0921]
[1720202008607,7.4064,135.02,134.94,15.0921]
[1720202008917,7.5768,135.01,134.92,6.0575]
[1720202009406,6.5957,134.99,134.91,380.9]
[1720202009585,6.5957,134.99,134.91,0.1]
[1720202009586,0.17,134.98,134.91,0.1]
[1720202012218,20.17,134.98,134.91,0.1]
[1720202012520,7.4092,134.97,134.91,0.1]
[1720202012806,0.17,134.96,134.91,0.1]
[1720202014316,7.579,134.97,134.91,0.1]
[1720202014505,0.17,134.97,134.91,0.1]
[1720202015413,7.74784154,134.98,134.91,0.1]
[1720202015707,7.4071,135.01,134.91,6.5968]
[1720202015912,22.5945,135.03,134.91,6.5968]
[1720202015913,15.14159517,135.02,134.91,6.5968]
[1720202016100,15.14139517,135.02,134.91,6.5968]
[1720202016296,15.14139517,135.02,134.92,20.0]
[1720202016689,7.4069,135.01,134.92,20.0]
[1720202017016,15.14139517,135.02,134.92,20.0]
[1720202017814,7.73499517,135.02,134.92,20.0]
[1720202017997,30.0004,135.03,134.92,20.0]
[1720202018325,22.5945,135.03,134.92,20.0]
[1720202018613,30.0004,135.03,134.92,20.0]
[1720202019094,7.73400321,135.04,134.92,20.0]
[1720202019290,37.61463684,135.06,134.93,0.17]
[1720202019291,22.3809,135.06,134.93,0.17]
[1720202019491,22.3809,135.06,134.94,16.2183]
[1720202019699,7.73163607,135.08,134.95,26.3361]
[1720202019912,29.7832,135.1,134.95,26.3361]
[1720202020215,7.72993158,135.11,134.97,100.0]
[1720202020517,29.3344,135.14,135.0,15.0767]
[1720202020722,37.06285728,135.14,135.01,20.0]
[1720202021198,7.4005,135.13,135.01,20.0]
[1720202021391,7.4008,135.12,135.01,20.0]
[1720202022226,7.4013,135.11,135.01,20.0]
[1720202023295,7.4015,135.11,135.01,20.0]
[1720202024023,27.4004,135.13,135.01,20.0]
[1720202024194,0.17,135.12,135.01,20.0]
[1720202024394,7.5703,135.13,135.01,20.0]
[1720202024728,7.72845728,135.14,135.01,20.0]
[1720202024897,7.399,135.16,135.03,6.5496]
[1720202025101,7.399,135.16,135.05,15.7998]
[1720202025301,7.399,135.16,135.06,20.0]
[1720202026130,15.12514643,135.17,135.06,20.0]
[1720202026426,7.72704643,135.17,135.06,20.0]
[1720202026594,15.48,135.18,135.06,20.0]
[1720202026790,7.3981,135.17,135.06,20.0]
[1720202026990,22.8776,135.18,135.06,20.0]
[1720202027819,0.17,135.17,135.06,20.0]
[1720202027998,7.5681,135.17,135.06,20.0]
[1720202029420,0.17,135.17,135.06,400.8]
[1720202029624,0.17,135.18,135.07,6.4334]
[1720202029812,0.17,135.18,135.08,20.0]
[1720202030923,7.5676,135.18,135.08,20.0]
[1720202032735,7.0676,135.18,135.08,20.0]
[1720202033325,15.12087281,135.19,135.08,20.0]
[1720202035018,0.17,135.18,135.08,20.0]
[1720202035722,7.3982,135.17,135.08,20.0]
[1720202036030,7.3983,135.17,135.08,20.0]
[1720202036203,0.17,135.16,135.08,20.0]
[1720202036530,7.72377281,135.19,135.08,20.0]
[1720202036711,7.3963,135.21,135.09,22.4491]
[1720202036914,23.1239063,135.22,135.09,22.4491]
[1720202037107,7.3964,135.2,135.1,20.0]
[1720202037322,23.1239063,135.22,135.1,20.0]
[1720202037508,20.0,135.21,135.1,20.0]
[1720202037840,7.5667,135.2,135.1,20.0]
[1720202038131,7.3973,135.19,135.1,20.0]
[1720202038637,7.5665,135.2,135.1,20.0]
[1720202039638,0.17,135.2,135.1,20.0]
[1720202039844,7.3981,135.17,135.1,20.0]
[1720202040139,7.3977,135.18,135.1,20.0]
[1720202040345,0.17,135.17,135.1,20.0]
[1720202040512,7.3965,135.2,135.1,20.0]
[1720202040716,0.17,135.18,135.1,20.0]
[1720202041417,53.16,135.21,135.1,20.0]
[1720202041623,20.0,135.21,135.1,20.0]
[1720202041934,7.7219063,135.22,135.1,20.0]
[1720202042238,33.16,135.21,135.1,20.0]
[1720202042734,7.3971,135.19,135.1,20.0]
[1720202043029,0.17,135.18,135.1,20.0]
[1720202043240,7.5666,135.2,135.1,20.0]
[1720202043628,0.17,135.2,135.1,20.0]
[1720202043840,7.3979,135.18,135.1,20.0]
[1720202044130,0.17,135.17,135.1,20.0]
[1720202044434,40.5561,135.21,135.1,20.0]
[1720202044636,0.17,135.2,135.1,20.0]
[1720202044825,7.7219063,135.22,135.1,20.0]
[1720202045337,7.7219063,135.22,135.11,33.33]
[1720202045541,7.3949,135.23,135.12,21.1337]
[1720202045835,7.3949,135.23,135.13,20.0]
[1720202046052,15.116341,135.24,135.13,20.0]
[1720202046229,7.3949,135.23,135.13,20.0]
[1720202046543,7.3953,135.22,135.13,20.0]
[1720202047039,7.395,135.23,135.13,20.0]
[1720202047249,33.16,135.21,135.12,21.1337]
[1720202047534,7.721941,135.24,135.12,21.1337]
[1720202047535,7.3976,135.18,135.12,21.1337]
[1720202047910,33.16,135.19,135.11,380.8]
[1720202048114,33.16,135.15,135.11,380.8]
[1720202048416,33.16,135.15,135.09,6.5296]
[1720202048417,0.17,135.14,135.09,6.5296]
[1720202048622,23.56,135.12,135.09,6.5296]
[1720202052152,23.56,135.12,135.05,6.4943]
[1720202052319,23.56,135.12,135.06,20.0]
[1720202052515,30.9609,135.12,135.05,6.4943]
[1720202052749,0.17,135.11,135.05,6.4943]
[1720202053416,0.17,135.11,135.04,16.1443]
[1720202054253,7.5714,135.11,135.04,16.1443]
[1720202054621,0.17,135.11,135.04,16.1443]
[1720202057144,0.17,135.11,135.02,6.488]
[1720202057346,0.17,135.11,135.03,20.0]
[1720202058568,7.5718,135.11,135.02,6.488]
[1720202058772,7.4022,135.1,135.02,6.488]
[1720202059075,0.17,135.09,135.02,6.488]
[1720202059248,7.5716,135.11,135.02,6.488]
[1720202060071,0.17,135.11,135.02,6.488]
[1720202060746,0.17,135.11,135.03,20.0]
[1720202063654,23.56,135.12,135.03,20.0]
[1720202063859,0.17,135.11,135.03,20.0]
[1720202064352,23.56,135.12,135.03,20.0]
[1720202065067,23.56,135.12,135.03,53.16]
[1720202065270,7.72565948,135.13,135.03,53.16]
[1720202065477,7.72565948,135.13,135.04,0.17]
[1720202065854,7.72565948,135.13,135.03,53.16]
[1720202066863,0.17,135.12,135.03,53.16]
[1720202067875,0.17,135.12,135.03,20.0]
[1720202068069,0.17,135.12,135.02,6.488]
[1720202069081,7.4023,135.1,135.01,413.96]
[1720202069255,15.3033,135.07,135.01,380.8]
[1720202069455,13.579,135.04,135.01,380.8]
[1720202069678,13.579,135.04,134.94,387.3248]
[1720202069679,7.5758,135.03,134.94,387.3248]
[1720202069979,0.17,135.03,134.94,6.5248]
[1720202070779,15.3033,135.07,134.94,39.6848]
[1720202070970,0.17,135.06,134.96,33.16]
[1720202071169,0.17,135.06,134.97,20.0]
[1720202072183,0.17,135.06,134.95,20.17]
[1720202074161,7.5741,135.06,134.95,20.17]
[1720202074672,0.17,135.06,134.95,20.17]
[1720202075186,7.4055,135.04,134.95,20.0]
[1720202075475,0.17,135.03,134.95,20.0]
[1720202075666,0.17,135.03,134.94,6.5248]
[1720202076868,0.17,135.04,134.94,6.5248]
[1720202077267,0.17,135.04,134.95,20.0]
[1720202077987,7.5752,135.04,134.95,20.0]
[1720202078360,0.17,135.04,134.95,20.0]
[1720202079065,7.5752,135.04,134.95,20.0]
[1720202079791,7.4057,135.03,134.95,20.0]
[1720202079959,0.17,135.02,134.95,20.0]
[1720202080581,0.17,135.03,134.95,20.0]
[1720202081257,22.7072,135.07,134.95,20.0]
[1720202081460,7.4048,135.05,134.95,20.0]
[1720202081810,0.17,135.04,134.95,20.0]
[1720202082982,7.5752,135.04,134.95,20.0]
[1720202084064,6.1288,135.03,134.95,20.0]
[1720202084278,6.1288,135.03,134.93,380.8]
[1720202084279,0.17,135.02,134.94,20.0]
[1720202084783,16.208,135.01,134.93,380.8]
[1720202084993,0.17,135.0,134.91,0.1]
[1720202085873,16.208,135.01,134.91,0.27]
[1720202086081,16.208,135.01,134.91,20.27]
[1720202087081,6.1288,135.03,134.91,20.27]
[1720202088977,13.5346,135.03,134.91,20.27]
[1720202089290,0.17,135.02,134.91,20.27]
[1720202089988,0.17,135.02,134.91,20.1]
[1720202091298,0.17,135.02,134.92,0.17]
[1720202091679,0.17,135.02,134.91,20.1]
[1720202091892,0.17,135.02,134.92,0.17]
[1720202092793,0.17,135.02,134.93,33.24]
[1720202092983,0.17,135.02,134.94,20.0]
[1720202095296,6.1288,135.03,134.94,20.0]
[1720202098395,0.17,135.02,134.94,20.0]
[1720202099604,7.5763,135.02,134.93,20.0]
[1720202099814,0.17,135.02,134.93,20.0]
[1720202101486,0.17,135.02,134.92,380.8]
[1720202101487,7.5764,135.02,134.92,380.8]
[1720202101899,0.17,135.02,134.92,380.8]
[1720202102516,6.1288,135.03,134.93,0.17]
[1720202102809,16.0265,135.04,134.96,33.24]
[1720202103014,16.0265,135.04,134.97,20.17]
[1720202104989,16.0265,135.04,134.98,33.24]
[1720202105307,6.0111,135.07,134.99,20.17]
[1720202105511,15.4841,135.08,135.0,33.24]
[1720202105687,6.4861,135.1,135.02,33.24]
[1720202105887,15.4841,135.12,135.04,33.24]
[1720202106198,15.4841,135.12,135.05,20.17]
[1720202107101,15.4841,135.12,135.05,20.0]
[1720202108607,15.4841,135.12,135.06,0.17]